Cogmind - Beta 11 X5 @@@ ROGUE MODE // 2021.06.13 @ 22:17:14 Player: Attached Tele Result: Self-destructed Performance ------------- Evolutions (9) 4500 Regions Visited (34) 6800 Robots Destroyed (464) 2320 Value Destroyed (21077) 21077 Prototype IDs (61) 1220 Alien Tech Used (9) 1800 Bonus (10095) 10095 TOTAL SCORE: 47812 Bonus ------- High Alert Combat Kills 3699 Follower Combat Kills 1431 Entered Garrisons 1200 Used RIF Installer 3000 Network Hubs Disabled 200 Met Data Miner 300 Built Enhanced Grunts 300 A7 Reached Mainframe 300 Met R17 at Research 2000 Friendly Fire -2335 Cogmind --------- Core Integrity 983/1600 Matter 847/1300 Energy 1090/1090 System Corruption 0% Temperature Cool (0) Movement Treading (160) Location -1/Command Parts ------- > --- POWER (3) -------- Quantum Reactor Quantum Reactor Light Quantum Reactor > --- PROPULSION (6) --- Advanced Heavy Siege Treads Advanced Heavy Siege Treads Advanced Heavy Siege Treads > --- UTILITY (10) ----- Huge Storage Unit Improved Energy Well Experimental Matter Compressor Experimental Matter Compressor Experimental Terrain Scan Processor Heavy Regenerative Plating Experimental Force Field Hacking Suite > --- WEAPON (6) ------- Gamma Rifle Gamma Rifle Advanced Plasma Rifle Enhanced Quantum Rifle Sigix Broadsword > --- INVENTORY (25) --- Matter Filter Energy Filter Improved Kinecellerator Improved Kinecellerator Core Regenerator Integrity Redistributor Subatomic Replicator Enhanced Nova Cannon Enhanced Nova Cannon Heavy Machine Gun Compact Mass Driver Gamma Bomb Array Tiamat Missile Launcher Tactical Quantum Warhead Lance Peak State ------------ > --- POWER ------------ Particle Reactor Quantum Reactor Improved Quantum Reactor > --- PROPULSION ------- Biometal Heavy Treads High-density Centrium Heavy Treads High-density Centrium Heavy Treads > --- UTILITY ---------- Huge Storage Unit Experimental Terrain Scanner Experimental Terrain Scan Processor Heavy Regenerative Plating EM Dispersion Field Experimental Force Field Hacking Suite Matter Drive > --- WEAPON ----------- Advanced Plasma Rifle Advanced Plasma Rifle Advanced Plasma Rifle Tiamat Missile Launcher Sigix Broadsword > --- INVENTORY -------- Experimental Cooling System High-capacity Storage Unit Improved Energy Well Experimental Matter Compressor Experimental Matter Compressor Advanced Terrain Scan Processor Experimental Terrain Scan Processor Advanced Target Analyzer Matter Filter Improved Kinecellerator Improved Kinecellerator System Restoration Module System Restoration Module Transdimensional Reconstructor Core Regenerator Integrity Redistributor Integrity Redistributor Subatomic Replicator Enhanced Nova Cannon Compact Mass Driver Tactical Quantum Warhead Lance Lance Lance Lance [Rating: 248] Favorites ----------- Power Light Antimatter Reactor Engine Ion Engine Power Core Micro Fission Core Reactor Light Antimatter Reactor Propulsion Light Treads Treads Light Treads Leg Advanced Myomer Leg Wheel Armored Wheel Hover Unit Improved Gravmag System Flight Unit VTOL Module Utility Medium Storage Unit Device Shield Generator Storage Medium Storage Unit Processor Experimental Terrain Scan Processor Hackware Advanced System Shield Protection Heavy Regenerative Plating Artifact Matter Drive Weapon Advanced Plasma Rifle Energy Gun Advanced Plasma Rifle Energy Cannon Ion Cannon Ballistic Gun Improved KE Penetrator Ballistic Cannon Tri-rail Accelerator Launcher Tiamat Missile Launcher Special Weapon Advanced Remote Datajack Impact Weapon Core Stripper Slashing Weapon Sigix Broadsword Piercing Weapon Enhanced Force Lance Build | -11 -10 -10 -9 -9 -9 -8 -8 -8 -8 -7 -7 -7 -7 -7 -7 -6 -6 -6 -5 -5 -4 -4 -4 -4 -4 -4 -4 -3 -3 -3 -2 -2 -1 -1 ------- Run | Scr Mat Min Mat Sto Gar Mat Gar Mat Gar Fac Gar Fac Low Low Dat Pro Fac Gar Fac Gar Fac Was Fac Ext Cet Arc Hub Res Qua Sec Res Tes Acc Com Slots Evolved 18 | . . . 2 . . 2 . . . 2 . . . . . . 2 . 2 . 2 . . . . . . 2 . . 2 . 2 . Power 2 | . . . . . . . . . . 1 . . . . . . . . 1 . . . . . . . . . . . . . . . Propulsion 4 | . . . . . . 2 . . . 1 . . . . . . 1 . . . . . . . . . . . . . . . . . Utility 8 | . . . 2 . . . . . . . . . . . . . 1 . . . 1 . . . . . . 2 . . 2 . . . Weapon 4 | . . . . . . . . . . . . . . . . . . . 1 . 1 . . . . . . . . . . . 2 . Parts Attached 585 | 11 17 3 38 5 . 6 4 11 9 3 9 48 4 5 2 18 21 10 19 37 22 9 7 11 5 9 32 42 48 41 22 7 43 7 Power 60 | 2 . . 4 . . . . . 1 1 . 4 . . . 2 2 4 4 2 1 2 . 3 2 2 3 6 4 3 2 1 5 . Engine 18 | 2 . . 3 . . . . . 1 1 . 3 . . . 1 1 3 . 1 . . . . . . 1 1 . . . . . . Core 11 | . . . 1 . . . . . . . . 1 . . . . 1 1 4 . 1 . . 1 . . 1 . . . . . . . Reactor 31 | . . . . . . . . . . . . . . . . 1 . . . 1 . 2 . 2 2 2 1 5 4 3 2 1 5 . Propulsion 108 | 4 2 . 4 1 . 2 . 3 4 1 3 13 1 1 . 3 5 2 8 11 1 3 1 1 . 1 5 9 11 1 1 . 6 . Treads 47 | 2 2 . 4 1 . 1 . 3 . . . 2 . 1 . 1 . . . 1 . 3 1 1 . 1 3 1 11 1 1 . 6 . Leg 46 | 2 . . . . . 1 . . 4 1 3 11 1 . . 2 4 . 8 . . . . . . . 1 8 . . . . . . Wheel 12 | . . . . . . . . . . . . . . . . . . . . 10 1 . . . . . 1 . . . . . . . Hover 1 | . . . . . . . . . . . . . . . . . 1 . . . . . . . . . . . . . . . . . Flight 2 | . . . . . . . . . . . . . . . . . . 2 . . . . . . . . . . . . . . . . Utility 217 | 2 3 2 10 4 . 2 2 3 1 . 2 12 1 2 . 5 6 2 5 15 19 2 6 7 3 6 17 12 14 18 11 4 17 2 Device 134 | 2 1 2 5 3 . 2 2 2 1 . 2 7 1 . . 4 2 1 4 12 17 1 3 3 1 3 7 5 11 10 8 1 10 1 Storage 23 | . 2 . 1 . . . . . . . . . . . . . . . 1 1 . . . 1 . 1 1 3 1 3 2 2 4 . Processor 10 | . . . . . . . . . . . . . . . . . 1 . . . 2 . . . . 1 . 1 1 1 . . 3 . Hackware 13 | . . . . 1 . . . . . . . 1 . . . . . . . . . . 2 2 . . 3 . 1 1 1 1 . . Protection 35 | . . . 4 . . . . 1 . . . 4 . 2 . 1 3 1 . 2 . 1 1 1 2 1 6 3 . 1 . . . 1 Artifact 2 | . . . . . . . . . . . . . . . . . . . . . . . . . . . . . . 2 . . . . Weapon 200 | 3 12 1 20 . . 2 2 5 3 1 4 19 2 2 2 8 8 2 2 9 1 2 . . . . 7 15 19 19 8 2 15 5 Energy Gun 79 | 1 7 1 7 . . . . . . . . 9 1 1 2 3 4 1 2 5 . . . . . . 2 9 8 1 6 1 6 2 Energy Cannon 28 | . . . 8 . . 1 1 4 2 1 2 3 . . . . 2 . . . . . . . . . . . . 3 . . 1 . Ballistic Gun 11 | 2 4 . . . . . . . . . . . . . . 1 . . . . . . . . . . 3 1 . . . . . . Ballistic Cannon 22 | . . . . . . . . . . . . 2 . . . 2 . . . 2 1 1 . . . . . 3 5 5 . . 1 . Launcher 35 | . . . 5 . . 1 1 1 1 . 2 3 1 1 . . 1 1 . 2 . 1 . . . . 2 2 1 . 2 1 5 1 Special Weapon 4 | . 1 . . . . . . . . . . . . . . . . . . . . . . . . . . . . 3 . . . . Impact Weapon 6 | . . . . . . . . . . . . . . . . . . . . . . . . . . . . . 2 4 . . . . Slashing Weapon 9 | . . . . . . . . . . . . 2 . . . . . . . . . . . . . . . . 3 2 . . 1 1 Piercing Weapon 6 | . . . . . . . . . . . . . . . . 2 1 . . . . . . . . . . . . 1 . . 1 1 Special Melee Weapon . | . . . . . . . . . . . . . . . . . . . . . . . . . . . . . . . . . . . Unidentified Prototypes 41 | . . . 1 . . . . 1 . . . 8 . . . 2 2 . . . 2 . . . 1 1 1 8 7 7 . . . . Corrupted Parts 20 | . . 1 . . . . 1 1 . . . 8 . . . 2 . . . . . . . . . . 7 . . . . . . . System Corruption 133 | . . 1 . . . . 8 6 . . . 45 . . . 7 . . . . . . . . . . 66 . . . . . . . Parts Lost 67 | . . . 6 . . . . . . . . 16 1 2 . 3 4 7 . 5 . . 1 1 1 . 6 . 1 3 . . 10 . Power 13 | . . . 1 . . . . . . . . 1 1 . . 1 1 2 . 1 . . 1 . 1 . 2 . . 1 . . . . Propulsion 17 | . . . . . . . . . . . . 8 . 2 . . 2 2 . 1 . . . . . . 1 . . . . . 1 . Utility 22 | . . . 3 . . . . . . . . 4 . . . 1 1 2 . 2 . . . 1 . . 1 . 1 1 . . 5 . Weapon 15 | . . . 2 . . . . . . . . 3 . . . 1 . 1 . 1 . . . . . . 2 . . 1 . . 4 . Highest Loss Streak 10 | . . . 2 . . . . . . . . 10 1 1 . 2 1 6 . 5 . . 1 1 1 . 2 . 1 2 . . 6 . Average Slot Usage (%) 88 | . 99 100 91 100 100 91 100 99 100 100 100 93 90 81 70 91 98 88 96 92 88 76 71 69 72 70 78 92 92 68 70 73 78 73 Engine 5 | . 14 14 6 11 11 9 9 9 9 15 15 12 7 7 7 4 7 5 2 2 2 . . . . . 2 2 . . . . . . Core 2 | . . . 3 . . . . . . . . 1 6 . . . . 5 10 7 7 5 5 3 . . . 4 4 1 . . . . Reactor 4 | . . . . . . . . . . . . . . . . 4 4 . . 4 5 9 8 10 14 15 10 4 8 9 11 13 12 12 Treads 14 | . 27 28 22 22 22 27 27 34 24 . . 1 . 4 7 6 . . . 3 . 11 15 15 15 14 15 10 15 14 13 13 11 12 Leg 9 | . . . . . . 1 9 1 11 38 38 33 38 25 23 28 36 29 33 7 . . . . . . . 10 9 . . . . . Wheel 1 | . . . . . . . . . . . . . . . . . . . . 22 31 7 . . . . . . . . . . . . Device 14 | . 14 14 19 32 33 27 27 21 27 23 23 17 7 7 7 11 10 5 11 16 14 15 10 8 10 10 4 13 17 12 13 13 12 4 Storage 7 | . 13 14 11 11 11 9 9 9 9 7 7 7 7 7 7 7 6 6 5 5 5 5 5 5 10 6 6 5 6 6 6 6 6 16 Processor 2 | . . . . . . . . . . . . . . . . . 3 6 5 . 4 5 5 . . 1 5 5 7 4 4 4 6 4 Hackware 1 | . . . . . . . . . . . . . . . . . . . . . . . 4 8 5 5 9 . 2 1 . 1 4 4 Protection 4 | . . . 7 . . . . 5 . . . 1 7 11 15 9 10 11 4 4 5 5 4 4 5 5 4 11 1 2 4 4 3 4 Energy Gun 8 | . 25 28 6 . . . . . . . . 4 14 14 1 11 10 12 17 5 . . . . . . 3 6 12 . 7 7 13 11 Energy Cannon 3 | . . . 14 22 22 17 18 17 17 15 14 9 . . . . 1 . . . . . . . . . . . . . . . . . Ballistic Gun 1 | . 2 . . . . . . . . . . . . . . 1 . . . . . . . . . . 3 9 . . . . . . Ballistic Cannon 1 | . . . . . . . . . . . . . . . . . . . . 4 10 10 10 10 10 10 5 1 . . . . . . Naked Turns . | . . . . . . . . . . . . . . . . . . . . . . . . . . . . . . . . . . . Heaviest Build 212 | 10 93 18 36 39 39 39 39 39 39 51 51 61 56 51 51 60 75 40 81 107 117 133 133 124 123 117 108 125 118 151 159 162 212 208 Greatest Support 270 | 40 40 40 44 44 42 62 62 82 80 53 58 138 123 123 90 133 158 140 126 105 76 210 215 215 215 215 215 215 270 270 265 255 255 240 Greatest Overweight (x) 3 | 3 2 . . . . . . . 1 . . 2 . . . . . . . 2 1 1 . . . . . 1 1 . . . . . Average Overweight (x) . | . . . . . . . . . . . . . . . . . . . . . 1 . . . . . . . . . . . . . Largest Inventory Capacity 25 | 5 25 8 10 10 10 10 10 10 10 10 10 10 10 10 10 10 10 10 15 15 15 15 15 15 15 15 15 20 20 20 20 20 25 25 Average Capacity 13 | 5 10 8 8 10 10 10 10 10 10 10 10 10 10 10 10 10 10 10 13 15 15 15 15 15 15 15 15 17 20 20 20 20 24 25 Most Carried 25 | 5 9 8 10 10 10 10 10 10 10 9 10 10 10 10 10 10 10 10 13 15 15 15 15 15 15 15 15 20 20 20 20 20 25 19 Average Carried 12 | 2 7 7 8 9 10 9 9 9 9 8 9 9 9 9 10 9 9 9 10 11 14 14 14 13 14 14 13 15 19 19 18 19 23 15 Final Capacity 25 | 5 8 8 10 10 10 10 10 10 10 10 10 10 10 10 10 10 10 10 15 15 15 15 15 15 15 15 15 20 20 20 20 20 25 25 Final Carried 21 | 5 8 8 10 10 10 10 9 10 10 9 10 10 10 10 10 9 10 10 12 15 15 15 15 14 15 15 15 19 20 20 17 20 21 15 Class Distribution -------------------- 33% | Mutant 19% | Scavenger-Mutant 15% | Scavenger-Tank 13% | Generator-Mutant 7% | Generator-Tank Dominant Class ---------------- Mutant | -10/Materials Mutant | -10/Mines Mutant | -9/Materials Mutant | -9/Storage Mutant | -9/Garrison Mutant | -8/Materials Mutant | -8/Garrison Scavenger-Mutant | -8/Materials Scavenger-Mutant | -8/Garrison Scavenger-Mutant | -7/Factory Scavenger-Mutant | -7/Garrison Scavenger-Mutant | -7/Factory Mutant | -7/Lower Caves Mutant | -7/Lower Caves Mutant | -7/Data Miner Mutant | -6/Proximity Caves Scavenger-Mutant | -6/Factory Scavenger-Mutant | -6/Garrison Scavenger-Tank | -5/Factory Scavenger-Tank | -5/Garrison Scavenger-Tank | -4/Factory Generator-Tank | -4/Waste Generator-Tank | -4/Factory Scavenger-Tank | -4/Extension Generator-Tank | -4/Cetus Generator-Tank | -4/Archives Hacker-Gunner | -4/Hub_04(d) Scavenger-Tank | -3/Research Scavenger-Mutant | -3/Quarantine Generator-Mutant | -3/Section 7 Generator-Mutant | -2/Research Generator-Mutant | -2/Testing Generator-Mutant | -1/Access Generator-Mutant | -1/Command Resources | -11 -10 -10 -9 -9 -9 -8 -8 -8 -8 -7 -7 -7 -7 -7 -7 -6 -6 -6 -5 -5 -4 -4 -4 -4 -4 -4 -4 -3 -3 -3 -2 -2 -1 -1 ----------- Run | Scr Mat Min Mat Sto Gar Mat Gar Mat Gar Fac Gar Fac Low Low Dat Pro Fac Gar Fac Gar Fac Was Fac Ext Cet Arc Hub Res Qua Sec Res Tes Acc Com Matter Collected 10787 | 370 174 10 451 59 . 75 40 219 138 . 199 470 88 21 . 363 262 159 82 858 535 95 207 303 455 268 1027 760 728 651 455 66 781 418 Remotely 1257 | 262 74 . . . . . . . . . . . . . . . 60 10 . 157 329 . 80 . . 76 89 120 . . . . . . Salvage Created 21118 | 225 466 277 810 326 247 255 119 872 406 . 456 2654 131 91 . 491 815 314 341 940 572 . 313 286 313 58 1902 926 1431 1208 899 199 2402 373 Parts 900 | 14 23 16 52 22 15 10 13 41 20 . 15 113 13 8 . 15 27 14 13 40 11 . 18 12 9 7 84 38 44 50 30 14 76 23 Haulers Intercepted 18 | . 2 . 2 1 . . . 5 . . . 1 . . . . 1 . . . 3 . . . . . 1 2 . . . . . . Recyclers Shooed 10 | . 1 . 2 . . . . 1 . . . 2 . . . . 1 . . . . . . 1 . . . . . . 1 . 1 . Parts Field Recycled . | . . . . . . . . . . . . . . . . . . . . . . . . . . . . . . . . . . . Retrieved Matter . | . . . . . . . . . . . . . . . . . . . . . . . . . . . . . . . . . . . Parts Self-Destructed 32 | . . . . . . . . . . . . . 13 6 . 13 . . . . . . . . . . . . . . . . . . Prevented 1 | . . . . . . . . . . . . . 1 . . . . . . . . . . . . . . . . . . . . . Kills | -11 -10 -10 -9 -9 -9 -8 -8 -8 -8 -7 -7 -7 -7 -7 -7 -6 -6 -6 -5 -5 -4 -4 -4 -4 -4 -4 -4 -3 -3 -3 -2 -2 -1 -1 ------- Run | Scr Mat Min Mat Sto Gar Mat Gar Mat Gar Fac Gar Fac Low Low Dat Pro Fac Gar Fac Gar Fac Was Fac Ext Cet Arc Hub Res Qua Sec Res Tes Acc Com Combat Hostiles Destroyed 357 | . 1 4 23 6 5 4 8 12 11 . 11 40 7 7 . 12 10 12 3 20 5 . 5 8 6 1 32 8 15 14 17 7 38 5 Melee 15 | . . . 2 . . . . . . . . . . . . . . . . . . . . . . . . . . 10 . . . 3 Guns 109 | . 1 2 6 . . . . . . . . 13 4 3 . 12 6 4 3 2 . . . . . . 11 8 4 . 7 1 20 2 Cannons 107 | . . . 7 6 5 2 1 9 7 . 5 14 . . . . . . . 12 5 . 5 8 6 1 14 . . . . . . . AOE 81 | . . 2 7 . . 2 7 . 4 . 4 7 3 4 . . . 7 . 6 . . . . . . 3 . 3 . 6 5 11 . Classes Destroyed 23 | 3 4 . 3 1 . . . . 1 . . 5 . 2 . . . . . 2 . . . . . . . . 1 1 . . . . Worker 17 | 2 . . 1 . . . . 1 . . . 1 . . . . . . 1 . 2 . . . . . 6 . 1 . . . 2 . Builder 19 | . 2 . . . . . . . . . . 4 . . . . . . . . . . 1 . . . 5 2 1 2 1 . 1 . Tunneler 6 | 5 . 1 . . . . . . . . . . . . . . . . . . . . . . . . . . . . . . . . Hauler 18 | . 2 . 2 1 . . . 5 . . . 1 . . . . 1 . . . 3 . . . . . 1 2 . . . . . . Recycler 19 | 1 3 . . . . . . . . . . 6 . . . . 1 . 1 . 1 . 1 . . . 1 1 . . 1 . 1 1 Minesweeper 1 | . . . . . . . . . . . . . . 1 . . . . . . . . . . . . . . . . . . . . Mechanic 1 | . . . . . . . . . . . . 1 . . . . . . . . . . . . . . . . . . . . . . Operator 11 | . . . 2 . . . . . . . . 1 . . . . . . . . . . . . . 6 . . . 1 . . 1 . Watcher 12 | . 2 . 1 . . 1 . 1 1 . . 1 . . . . . . . . . . . . 1 . 1 1 2 . . . . . Swarmer 104 | . . . 11 . . . 6 . 3 . 3 5 7 7 . 2 . 5 . 8 . . . 4 . . 10 . 1 1 10 5 12 4 Saboteur 2 | . . . . . . . . . . . . . . . . . . . . 2 . . . . . . . . . . . . . . Grunt 116 | . 1 4 8 2 2 3 2 10 7 . 7 13 . . . 8 3 2 3 1 4 . . . 1 . 14 3 6 1 . . 11 . Brawler 5 | . . . . 1 . . . 1 . . . . . . . 1 . . . . . . . . . . . . 1 . . . 1 . Duelist 4 | . . . . . . . . . 1 . . 1 . . . . . . . . . . . . . . . . . . . . 2 . Protector 4 | . . . . . . . . . . . . 2 . . . . . . . 1 . . . . . . . . . . . . 1 . Sentry 47 | . . . 4 3 3 1 . 1 . . 1 6 . . . 1 1 4 . 2 1 . 1 3 . 1 4 . . 3 5 . 2 . Specialist 5 | . . . . . . . . . . . . 4 . . . . . . . 1 . . . . . . . . . . . . . . Hunter 24 | . . . . . . . . . . . . 4 . . . . 6 1 . 2 . . 2 . 2 . 2 . 3 . . . 2 . Programmer 35 | . . . . . . . . . . . . 5 . . . . . . . 2 . . 2 . . . 2 5 3 4 2 2 7 1 Behemoth 2 | . . . . . . . . . . . . . . . . . . . . 1 . . . 1 . . . . . . . . . . Cetus Guard 3 | . . . . . . . . . . . . . . . . . . . . . . . . . 3 . . . . . . . . . S7 Guard 3 | . . . . . . . . . . . . . . . . . . . . . . . . . . . . . . 3 . . . . Executioner 2 | . . . . . . . . . . . . . . . . . . . . . . . . . . . . . . 2 . . . . Fortress 1 | . . . . . . . . . . . . . . . . . . . . . . . . . . . . . 1 . . . . . Tinkerer 1 | . . . . . . . . . . . . . . 1 . . . . . . . . . . . . . . . . . . . . Thug 1 | . . . . . . . . . . . . . . . . . . . . . . . . . 1 . . . . . . . . . Savage 1 | . . . . . . . . . . . . . . . . . . . . . . . . . 1 . . . . . . . . . Best Kill Streak 23 | 4 2 2 4 5 5 4 8 7 7 . 6 23 4 4 . 4 2 10 4 7 3 . 3 7 2 3 8 3 4 3 5 5 11 4 Combat Bots Only 13 | . 1 2 4 5 5 3 8 4 6 . 6 13 4 4 . 4 1 10 3 7 2 . 2 7 2 1 7 2 4 2 5 5 9 3 Max Kills in Single Turn 6 | 1 1 2 2 1 1 2 4 1 1 . 1 6 2 2 . 1 1 2 1 4 2 . 3 2 1 1 4 3 2 1 3 3 5 1 Gunslinging 1 | . . . . . . . . . . . . . . . . . . . . . . . . . . . 1 . . . 1 . 1 . Exploded 4 | . . 2 2 . . 1 4 . 1 . 1 3 2 2 . . . 2 . 4 . . . . . . 2 . 2 . 3 3 4 . Melee 1 | . . . 1 . . . . . . . . . . . . . . . . . . . . . . . . . . 1 . . . 1 Uniques/NPCs Destroyed 1 | . . 1 . . . . . . . . . . . . . . . . . . . . . . . . . . . . . . . . YI-UF0 (-10/Mines) Combat | -11 -10 -10 -9 -9 -9 -8 -8 -8 -8 -7 -7 -7 -7 -7 -7 -6 -6 -6 -5 -5 -4 -4 -4 -4 -4 -4 -4 -3 -3 -3 -2 -2 -1 -1 -------- Run | Scr Mat Min Mat Sto Gar Mat Gar Mat Gar Fac Gar Fac Low Low Dat Pro Fac Gar Fac Gar Fac Was Fac Ext Cet Arc Hub Res Qua Sec Res Tes Acc Com Damage Taken 27000 | . 20 61 941 47 64 222 156 379 287 . 269 2811 185 435 . 974 1408 950 184 1387 104 . 155 559 326 29 3157 534 841 3218 1664 208 5183 242 Core 2062 | . . 12 139 . 20 37 . 35 18 . 17 311 13 55 . 134 161 86 8 142 . . . 28 . . 151 . 61 345 27 11 251 . Absorbed by Shields 6721 | . 8 22 175 17 25 28 61 136 112 . 102 579 . . . . . . 168 380 96 . 147 44 231 27 63 287 102 383 1646 217 1409 256 Reduced by Siege Mode 432 | . . . . . . . . . . . . . . . . . . . . . . . 13 42 32 . 153 26 . 96 31 . 17 22 Core Remaining (%) 75 | 100 . 95 . . 60 . . . 83 . . . . . . 24 . 70 . 85 . . . . . . 84 . . 68 . 81 . . Volleys Fired 951 | 15 23 13 68 9 8 7 5 42 25 . 22 94 9 11 . 44 54 18 12 115 20 . 11 11 25 18 57 28 32 25 43 11 70 6 Largest 4 | 2 2 2 2 2 2 2 2 2 2 . 2 2 2 2 . 2 2 2 3 3 2 . 2 2 2 2 4 4 4 3 2 2 4 4 Hottest 358 | 40 100 90 130 120 120 120 120 136 128 . 120 200 200 200 . 200 138 120 200 140 120 . 120 120 120 120 208 352 352 220 176 176 358 332 Shots Fired 1833 | 30 42 26 103 18 16 11 8 81 42 . 38 184 16 20 . 51 107 29 24 141 40 . 22 22 50 36 140 97 92 27 82 19 198 21 Gun 1037 | 30 38 26 37 . . . . . . . . 49 14 17 . 49 92 23 24 101 . . . . . . 72 90 83 1 76 16 178 21 Cannon 686 | . . . 54 18 16 8 6 78 38 . 32 122 . . . 2 14 . . 34 40 . 22 22 50 36 58 7 5 21 . . 3 . Launcher 101 | . . . 12 . . 3 2 3 4 . 6 13 2 3 . . 1 6 . 6 . . . . . . 10 . 4 . 6 3 17 . Special 9 | . 4 . . . . . . . . . . . . . . . . . . . . . . . . . . . . 5 . . . . Kinetic 421 | 30 6 . . . . . . . . . . . . . . 2 . . . 34 40 . 22 22 50 36 95 69 5 8 . . 2 . Thermal 1162 | . 4 . 41 18 16 8 6 78 38 . 32 171 14 17 . 49 92 23 24 101 . . . . . . 35 28 83 1 76 16 179 12 Explosive 54 | . . . 12 . . . 2 . 4 . 3 2 2 3 . . 1 6 . 6 . . . . . . . . . . 6 3 4 . Electromagnetic 191 | . 32 26 50 . . 3 . 3 . . 3 11 . . . . 14 . . . . . . . . . 10 . 4 13 . . 13 9 Robot Hit Streak 30 | 6 8 4 11 11 15 7 2 7 9 . 10 20 3 7 . 12 16 12 11 26 30 . 20 15 20 13 27 20 14 10 17 6 11 4 Robot Miss Streak 11 | 1 2 3 4 2 1 1 2 3 3 . 1 7 6 5 . 4 2 1 2 5 4 . 4 4 4 11 4 4 3 1 5 1 4 2 Penetration Max 1 | . . . . . . . . . . . . . . . . . . . . . . . . . . . 1 1 . . . . . . Secondary Targets 15 | . . . 1 . . . . . . . . . . . . . . . . . . . . . . . 3 2 1 . 2 . 5 1 Max Gunslinging Chain 1 | . . . 1 . . . . . . . . . . . . . . . . . . . . . . . 1 1 1 . 1 . 1 1 Shots Hit Robots 1400 | 23 24 16 67 11 11 8 4 50 28 . 29 138 9 14 . 47 76 24 22 117 36 . 14 14 47 29 110 64 62 68 67 15 136 20 Core Hits 917 | 11 13 10 40 7 6 8 12 29 21 . 18 102 12 17 . 38 23 24 19 81 21 . 18 17 32 17 84 39 28 21 31 13 97 8 Critical Kills 13 | . . . . . . . . 4 . . . 1 . . . . . . . . . . . . . . 1 2 2 3 . . . . Critical Parts Destroyed 10 | . . . . . . . . . . . . . . . . . . . . . . . . . . . 2 3 . 5 . . . . Critical Strikes 92 | . . 1 3 . . . . 4 . . . 1 . . . . 3 . . 6 1 . 2 1 2 4 9 7 13 10 4 . 21 . Burn 46 | . . . . . . . . . . . . . . . . . 3 . . 3 . . . . . . 2 2 11 . 4 . 21 . Meltdown 5 | . . . . . . . . 4 . . . 1 . . . . . . . . . . . . . . . . . . . . . . Destroy 19 | . . . . . . . . . . . . . . . . . . . . . . . . . . . 4 5 2 8 . . . . Blast 16 | . . . . . . . . . . . . . . . . . . . . 3 1 . 2 1 2 4 3 . . . . . . . Corrupt 6 | . . 1 3 . . . . . . . . . . . . . . . . . . . . . . . . . . 2 . . . . Melee Attacks 121 | . . . . . . . . . . . . 2 . . . . . . . . . . . . . . . . 7 92 5 1 6 8 Kinetic 6 | . . . . . . . . . . . . . . . . . . . . . . . . . . . . . 1 5 . . . . Impact . | . . . . . . . . . . . . . . . . . . . . . . . . . . . . . . . . . . . Slashing 109 | . . . . . . . . . . . . 2 . . . . . . . . . . . . . . . . 6 81 5 1 6 8 Piercing 6 | . . . . . . . . . . . . . . . . . . . . . . . . . . . . . . 6 . . . . Sneak Attacks 12 | . . . . . . . . . . . . . . . . . . . . . . . . . . . . . 2 5 2 1 1 1 Combat Hostiles 2 | . . . . . . . . . . . . . . . . . . . . . . . . . . . . . . 2 . . . . Follow-up Attacks 4 | . . . . . . . . . . . . . . . . . . . . . . . . . . . . . . 4 . . . . Damage Inflicted 63185 | 239 545 340 2017 268 264 413 427 1294 1055 . 1031 5984 363 627 . 1343 2300 1597 552 4919 1817 . 1057 1160 2650 1597 5603 2105 2568 5888 3578 1052 7461 1071 Guns 20735 | 239 445 235 424 . . . . . . . . 1051 165 346 . 1343 2042 617 529 2059 . . . . . . 1310 2015 1738 . 1735 374 3734 334 Cannons 19262 | . . . 884 268 264 118 70 1162 553 . 618 1993 . . . . 247 . . 1337 1817 . 1021 1160 2650 1597 3054 90 . 359 . . . . Explosions 15095 | . 95 94 614 . . 295 357 129 502 . 413 2770 198 281 . . . 980 . 1523 . . . . . . 1202 . 415 . 1191 506 3530 . Melee 7683 | . . . . . . . . . . . . . . . . . . . . . . . . . . . . . 399 5529 652 172 194 737 Ramming 410 | . 5 11 95 . . . . 3 . . . 170 . . . . 11 . 23 . . . 36 . . . 37 . 16 . . . 3 . Kinetic 15240 | 239 50 . . . . . . . . . . . . . . . . . . 1337 1817 . 1021 1160 2650 1597 3712 1596 . 61 . . . . Thermal 24630 | . 95 94 520 268 264 162 70 1162 553 . 618 3874 165 346 . 1343 2042 617 529 2059 . . . . . . 708 509 1802 . 1735 374 4456 265 Explosive 8724 | . . . 565 . . . 357 . 502 . 237 350 198 281 . . . 980 . 1523 . . . . . . . . . . 1191 506 2034 . Electromagnetic 6559 | . 395 235 837 . . 251 . 129 . . 176 1590 . . . . 247 . . . . . . . . . 1146 . 351 359 . . 774 69 Impact . | . . . . . . . . . . . . . . . . . . . . . . . . . . . . . . . . . . . Slashing 7489 | . . . . . . . . . . . . . . . . . . . . . . . . . . . . . 399 5335 652 172 194 737 Piercing 133 | . . . . . . . . . . . . . . . . . . . . . . . . . . . . . . 133 . . . . Highest Corruption 71 | . . 1 . 1 1 1 9 15 15 . . 49 49 49 49 56 . . . 6 . . . . . . 71 4 7 7 . . . . Average Corruption 15 | . . 1 . 1 1 1 1 11 15 . . 14 49 49 49 49 . . . 5 . . . . . . 52 3 5 4 . . . . Corruption Purged 7 | . . . . . . . . . . . . . . . . . . . . . . . . . . . . . . 7 . . . . Effects 330 | . . . . . 1 . 1 32 28 . . 31 19 27 5 42 . . . 29 . . . . . . 42 28 21 24 . . . . Message Errors 81 | . . . . . . . . 6 5 . . 6 3 8 2 9 . . . 12 . . . . . . 6 12 5 7 . . . . Matter Fused 78 | . . . . . . . . 9 6 . . 5 4 9 1 10 . . . 3 . . . . . . 8 7 9 7 . . . . Heat Flow Errors 28 | . . . . . . . . 4 2 . . 4 2 2 . 4 . . . 2 . . . . . . 2 3 2 1 . . . . Energy Discharges 34 | . . . . . 1 . . 5 3 . . 8 1 2 1 3 . . . 3 . . . . . . 2 3 1 1 . . . . Parts Rejected 1 | . . . . . . . . . . . . . 1 . . . . . . . . . . . . . . . . . . . . . Data Loss (minor) 40 | . . . . . . . 1 2 8 . . 3 4 5 . 3 . . . 1 . . . . . . 4 2 1 6 . . . . Data Loss (major) 14 | . . . . . . . . 3 . . . 1 1 . . 2 . . . 3 . . . . . . . . 2 2 . . . . Misfires 7 | . . . . . . . . 1 . . . 2 1 1 . . . . . 2 . . . . . . . . . . . . . . Alerts 6 | . . . . . . . . . 1 . . 1 1 . 1 1 . . . . . . . . . . 1 . . . . . . . Misdirections 7 | . . . . . . . . 1 . . . . . . . 1 . . . . . . . . . . 5 . . . . . . . Weapon Failures 34 | . . . . . . . . 1 3 . . 1 1 . . 9 . . . 3 . . . . . . 14 1 1 . . . . . Overload Shots 76 | . . . . . . . . . . . . . . . . . 50 16 2 8 . . . . . . . . . . . . . . Effects 4 | . . . . . . . . . . . . . . . . . 3 1 . . . . . . . . . . . . . . . . Energy Bleed 2 | . . . . . . . . . . . . . . . . . 2 . . . . . . . . . . . . . . . . . Heat Surge 1 | . . . . . . . . . . . . . . . . . 1 . . . . . . . . . . . . . . . . . Meltdown 1 | . . . . . . . . . . . . . . . . . . 1 . . . . . . . . . . . . . . . . Overflow Damage 2216 | . 1 . 63 . . 20 5 . 58 . 11 133 36 . . . . 53 . 81 8 . 7 . . 89 63 6 . 747 263 160 409 3 Projectiles 202 | . . . 2 . . . . . 44 . . . . . . . . . . 1 8 . 7 . . 89 45 6 . . . . . . Explosions 704 | . 1 . 61 . . 20 5 . 14 . 11 129 36 . . . . 53 . 80 . . . . . . 18 . . . 3 18 255 . Melee 1310 | . . . . . . . . . . . . 4 . . . . . . . . . . . . . . . . . 747 260 142 154 3 Knockbacks 81 | . 1 . 1 . . . . . . . . 1 . . . . . . 1 9 6 . 6 1 11 16 27 1 . . . . . . Impact 4 | . 1 . 1 . . . . . . . . 1 . . . . . . 1 . . . . . . . . . . . . . . . Kinetic 69 | . . . . . . . . . . . . . . . . . . . . 8 6 . 6 1 11 15 21 1 . . . . . . Secondary 8 | . . . . . . . . . . . . . . . . . . . . 1 . . . . . 1 6 . . . . . . . Self-Inflicted Damage 1237 | . . . 122 . . 23 40 . . . 17 219 . . . . 29 130 . 140 . . . . . . 121 . 10 . 244 . 142 . Shots 38 | . . . 4 . . 3 1 . . . 1 4 . . . . 1 4 . 5 . . . . . . 4 . 2 . 4 . 5 . Rammed 50 | . 2 2 37 . . . . . . . . . . . . . . . . . . . 2 . . . 5 . 1 . . . 1 . Targets Rammed 76 | . 2 4 39 . . . . 1 . . . 17 . . . . 1 . 2 . . . 2 . . . 5 . 2 . . . 1 . Kicked 20 | . . . . . . . . . . . . 17 . . . . 1 . 2 . . . . . . . . . . . . . . . Crushed 6 | . . 2 2 . . . . 1 . . . . . . . . . . . . . . . . . . . . 1 . . . . . Highest Temperature 486 | . 90 168 408 36 85 30 18 209 248 . 32 426 249 408 . 283 330 312 29 351 64 . 4 11 . . 486 339 285 8 . . 283 460 Average Temperature 91 | . 32 72 84 14 35 12 9 90 104 . 14 112 93 104 . 102 92 105 19 89 35 . 2 4 . . 136 57 76 8 . . 93 179 Received Heat Transfer 3733 | . 12 30 269 12 22 108 24 197 147 . 141 513 . . . 330 111 162 72 197 8 . 8 85 4 8 376 26 96 174 82 28 491 . Effects 24 | . . . 2 . . . . . . . . 1 2 1 . 1 4 . . 1 . . . . . . 6 2 3 . . . . 1 Shutdowns 7 | . . . 1 . . . . . . . . . . . . . . . . . . . . . . . 6 . . . . . . . Energy Bleed 3 | . . . . . . . . . . . . . . 1 . 1 . . . . . . . . . . . . . . . . . 1 Interference 12 | . . . . . . . . . . . . 1 2 . . . 4 . . . . . . . . . . 2 3 . . . . . Short Circuit 1 | . . . . . . . . . . . . . . . . . . . . 1 . . . . . . . . . . . . . . Damage (minor) 1 | . . . 1 . . . . . . . . . . . . . . . . . . . . . . . . . . . . . . . Siege Activations 36 | . . . . . . . . . . . . . . . . . . . . . . . 3 3 2 . 7 2 . 8 2 1 6 2 Total Turns 1253 | . . . . . . . . . . . . . . . . . . . . . . . 24 36 38 . 111 711 . 180 71 12 41 29 Longest Duration 474 | . . . . . . . . . . . . . . . . . . . . . . . 13 19 19 . 31 474 . 55 36 12 13 23 Robots Corrupted 18 | . . . 1 . . . . . . . 1 4 . . . . 2 . . . . . . . . . 4 . . 3 . . 3 . Combat Hostiles 18 | . . . 1 . . . . . . . 1 4 . . . . 2 . . . . . . . . . 4 . . 3 . . 3 . Parts Fried 52 | . 3 1 8 . . . . . . . 1 15 . . . . 4 . . . . . . . . . 9 . 1 5 . . 4 1 Impact Corruptions 1 | . . . . . . . . . . . . 1 . . . . . . . . . . . . . . . . . . . . . . Robots Melted 27 | . . . . . . . . 4 . . 1 2 . . . . 3 1 . . . . . . . . . . 7 . 4 1 4 . Combat Hostiles 25 | . . . . . . . . 3 . . 1 2 . . . . 2 1 . . . . . . . . . . 7 . 4 1 4 . Parts Melted 177 | . . . 6 . 1 . . 10 1 . 5 18 . 1 . 5 17 3 1 5 . . . . . . 7 5 20 . 24 2 43 3 Heat Transferred 44407 | . 200 . 1136 407 407 235 111 1961 925 . 999 6307 275 575 . 2250 3345 909 1108 3590 . . . . . . 1605 1085 4050 . 3350 550 8655 372 Parts Sabotaged . | . . . . . . . . . . . . . . . . . . . . . . . . . . . . . . . . . . . Parts Stolen . | . . . . . . . . . . . . . . . . . . . . . . . . . . . . . . . . . . . Parts Stripped . | . . . . . . . . . . . . . . . . . . . . . . . . . . . . . . . . . . . Power Chain Reactions 19 | . 3 1 2 . . 1 . . . . . 6 . . . . . . . . . . . . . . 1 . 1 . . . 4 . Missiles Intercepted . | . . . . . . . . . . . . . . . . . . . . . . . . . . . . . . . . . . . Alert | -11 -10 -10 -9 -9 -9 -8 -8 -8 -8 -7 -7 -7 -7 -7 -7 -6 -6 -6 -5 -5 -4 -4 -4 -4 -4 -4 -4 -3 -3 -3 -2 -2 -1 -1 ------- Run | Scr Mat Min Mat Sto Gar Mat Gar Mat Gar Fac Gar Fac Low Low Dat Pro Fac Gar Fac Gar Fac Was Fac Ext Cet Arc Hub Res Qua Sec Res Tes Acc Com Peak Influence 1393 | 40 127 115 289 267 413 363 409 313 453 237 473 1148 . . . . 339 421 328 616 472 86 581 370 563 376 1111 833 473 591 978 709 1393 1047 Initial 862 | . 26 10 . 84 173 200 235 198 137 237 165 247 . . . . 113 196 220 . 323 86 . 200 133 194 131 498 328 195 274 465 424 862 Average 319 | 30 19 30 142 174 316 266 333 187 361 237 303 457 . . . . 198 342 226 351 356 71 282 211 334 324 561 539 389 404 442 586 826 911 Maximum Alert Level 4 | . . . 1 1 2 1 2 1 2 1 2 4 . . . . 1 2 1 2 2 . 2 1 2 1 4 3 2 2 3 3 4 3 Low Security (%) 35 | 100 100 100 80 43 35 . . 66 7 . 7 13 . . . . 44 9 31 28 5 100 36 31 21 8 22 . . . 15 . . . Level 1 32 | . . . 19 56 17 100 45 33 26 100 62 59 . . . . 55 32 68 45 52 . 5 68 50 91 17 21 49 42 42 . . . Level 2 23 | . . . . . 47 . 54 . 66 . 29 . . . . . . 58 . 26 41 . 58 . 28 . 20 77 50 57 16 93 47 . Level 3 6 | . . . . . . . . . . . . 17 . . . . . . . . . . . . . . 32 . . . 25 6 30 100 Level 4 2 | . . . . . . . . . . . . 9 . . . . . . . . . . . . . . 7 . . . . . 22 . Level 5 . | . . . . . . . . . . . . . . . . . . . . . . . . . . . . . . . . . . . High Security . | . . . . . . . . . . . . . . . . . . . . . . . . . . . . . . . . . . . Max Security . | . . . . . . . . . . . . . . . . . . . . . . . . . . . . . . . . . . . Squads Dispatched 66 | . 3 . 2 . . . . 1 . . . 10 . . . . 5 . . . 2 . 1 1 . . 9 12 2 7 4 3 4 . Investigation 15 | . 3 . 1 . . . . . . . . 3 . . . . 1 . . . . . . 1 . . 3 3 . . . . . . Extermination 16 | . . . . . . . . . . . . 3 . . . . . . . . . . 1 . . . 1 2 2 2 3 1 1 . Reinforcement 25 | . . . 1 . . . . 1 . . . 3 . . . . 3 . . . 2 . . . . . 4 6 . 3 1 1 . . Assault 9 | . . . . . . . . . . . . 1 . . . . . . . . . . . . . . 1 1 . 2 . 1 3 . Garrison 1 | . . . . . . . . . . . . . . . . . 1 . . . . . . . . . . . . . . . . . Intercept . | . . . . . . . . . . . . . . . . . . . . . . . . . . . . . . . . . . . Construction Impeded 3 | . . . . . . . . . . . . 1 . . . . . . . . . . . . . . 1 . . . . 1 . . Haulers Reinforced 6 | . . . . . . . . . . . . . . . . . 2 . . . 2 . . . . . 1 1 . . . . . . Cargo Convoy Interrupts 3 | . . . . . . . . . . . . 1 . . . . . . . . . . . . . . . 1 . . 1 . . . Stealth | -11 -10 -10 -9 -9 -9 -8 -8 -8 -8 -7 -7 -7 -7 -7 -7 -6 -6 -6 -5 -5 -4 -4 -4 -4 -4 -4 -4 -3 -3 -3 -2 -2 -1 -1 --------- Run | Scr Mat Min Mat Sto Gar Mat Gar Mat Gar Fac Gar Fac Low Low Dat Pro Fac Gar Fac Gar Fac Was Fac Ext Cet Arc Hub Res Qua Sec Res Tes Acc Com Distress Signals 30 | . 2 . 4 1 . . . 2 . . . 1 . . . . 2 . . . 1 . 1 1 2 . 1 5 2 1 1 . 2 1 Communications Jammed . | . . . . . . . . . . . . . . . . . . . . . . . . . . . . . . . . . . . Distress Signals . | . . . . . . . . . . . . . . . . . . . . . . . . . . . . . . . . . . . Times Spotted 601 | . 12 5 40 8 5 5 9 31 14 . 11 58 7 8 . 15 17 14 16 23 8 . 8 22 19 13 48 13 21 21 50 13 59 8 Peak Tracking Total 20 | . 2 2 4 6 2 4 8 5 5 . 5 12 4 4 . 5 4 7 10 8 2 . 4 7 5 1 15 2 4 4 20 6 11 4 Tactical Retreats 37 | . 2 1 5 . . . . 3 2 . 1 3 1 1 . 1 1 . . 2 . . . 3 . . 1 . 1 4 2 . 2 1 Traps | -11 -10 -10 -9 -9 -9 -8 -8 -8 -8 -7 -7 -7 -7 -7 -7 -6 -6 -6 -5 -5 -4 -4 -4 -4 -4 -4 -4 -3 -3 -3 -2 -2 -1 -1 ------- Run | Scr Mat Min Mat Sto Gar Mat Gar Mat Gar Fac Gar Fac Low Low Dat Pro Fac Gar Fac Gar Fac Was Fac Ext Cet Arc Hub Res Qua Sec Res Tes Acc Com Traps Triggered 16 | . . . 1 1 . 1 . . 1 . 1 . 1 1 . . . . . 4 3 . . . . . . . 1 . . . 1 . Indirectly . | . . . . . . . . . . . . . . . . . . . . . . . . . . . . . . . . . . . Trap Hack Attempts . | . . . . . . . . . . . . . . . . . . . . . . . . . . . . . . . . . . . Triggered . | . . . . . . . . . . . . . . . . . . . . . . . . . . . . . . . . . . . Disarmed . | . . . . . . . . . . . . . . . . . . . . . . . . . . . . . . . . . . . Reprogrammed . | . . . . . . . . . . . . . . . . . . . . . . . . . . . . . . . . . . . Reused . | . . . . . . . . . . . . . . . . . . . . . . . . . . . . . . . . . . . Traps Extracted . | . . . . . . . . . . . . . . . . . . . . . . . . . . . . . . . . . . . Installed . | . . . . . . . . . . . . . . . . . . . . . . . . . . . . . . . . . . . Triggered 4 | . 2 . . . . . . . . . . . . . . . . . . . . . . . . . . 2 . . . . . . Machines | -11 -10 -10 -9 -9 -9 -8 -8 -8 -8 -7 -7 -7 -7 -7 -7 -6 -6 -6 -5 -5 -4 -4 -4 -4 -4 -4 -4 -3 -3 -3 -2 -2 -1 -1 ---------- Run | Scr Mat Min Mat Sto Gar Mat Gar Mat Gar Fac Gar Fac Low Low Dat Pro Fac Gar Fac Gar Fac Was Fac Ext Cet Arc Hub Res Qua Sec Res Tes Acc Com Machines Disabled 58 | . 2 . 1 . . . . 1 . . . 5 . . . 1 1 . . 1 4 . . 1 4 4 10 1 4 11 . 2 4 1 Max in Single Turn 7 | . 1 . 1 . . . . 1 . . . 4 . . . 1 1 . . 1 2 . . . 2 2 7 . 1 1 . 2 2 1 Garrison Access 3 | . . . . . . . . . . . . . . . . . . . . . . . . . . . . . 1 1 . . 1 . Garrison Relay 1 | . . . . . . . . . . . . . . . . . . . . 1 . . . . . . . . . . . . . . Network Hub 1 | . . . . . . . . . . . . . . . . . . . . . . . . . . . 1 . . . . . . . Energy Cycler 1 | . . . . . . . . . . . . . . . . . . . . . . . . . . . . . . . . . 1 . Machines Sabotaged . | . . . . . . . . . . . . . . . . . . . . . . . . . . . . . . . . . . . Garrisons Compromised 1 | . . . . . . . . . . . . . . . . . . . . . . . . . . . . 1 . . . . . . Overloaded Fab Kills . | . . . . . . . . . . . . . . . . . . . . . . . . . . . . . . . . . . . Fab Network Shutdowns 1 | . . . . . . . . . . . . . . . . . . . . . . . 1 . . . . . . . . . . . Hacking | -11 -10 -10 -9 -9 -9 -8 -8 -8 -8 -7 -7 -7 -7 -7 -7 -6 -6 -6 -5 -5 -4 -4 -4 -4 -4 -4 -4 -3 -3 -3 -2 -2 -1 -1 --------- Run | Scr Mat Min Mat Sto Gar Mat Gar Mat Gar Fac Gar Fac Low Low Dat Pro Fac Gar Fac Gar Fac Was Fac Ext Cet Arc Hub Res Qua Sec Res Tes Acc Com Machines Accessed 72 | . 5 . 4 2 . 4 . 3 . 1 . 8 . 1 3 . 2 . 5 . 1 . 3 3 1 . 5 1 4 10 2 1 2 1 Terminals 50 | . 4 . 4 1 . 3 . 2 . . . 7 . . . . 1 . 3 . 1 . 2 2 1 . 5 . 2 8 1 1 1 1 Fabricators 3 | . . . . . . . . . . . . 1 . . . . . . 1 . . . 1 . . . . . . . . . . . Repair Stations 1 | . . . . . . . . . . . . . . . . . . . . . . . . 1 . . . . . . . . . . Recycling Units 1 | . 1 . . . . . . . . . . . . . . . . . . . . . . . . . . . . . . . . . Scanalyzers 4 | . . . . . . . . . . . . . . . . . . . . . . . . . . . . 1 1 1 1 . . . Garrison Access 9 | . . . . 1 . 1 . 1 . 1 . . . . . . 1 . 1 . . . . . . . . . 1 1 . . 1 . Total Hacks 235 | . 16 . 14 5 . 16 . 13 . 2 . 27 . 1 19 . 4 . 10 . 5 . 8 13 1 . 19 2 11 29 11 5 3 1 Successful 120 | . 6 . 9 2 . 9 . 4 . 2 . 8 . 1 19 . 2 . 7 . 2 . 5 10 1 . 6 . 7 12 6 . 2 . Failed 115 | . 10 . 5 3 . 7 . 9 . . . 19 . . . . 2 . 3 . 3 . 3 3 . . 13 2 4 17 5 5 1 1 Catastrophic 21 | . 3 . . . . . . . . . . 7 . . . . 1 . 1 . . . . . . . 3 . . 4 2 . . . Database Lockouts . | . . . . . . . . . . . . . . . . . . . . . . . . . . . . . . . . . . . Manual 99 | . 16 . 6 . . 10 . 6 . . . 13 . . . . 2 . . . . . 1 7 1 . 16 1 7 6 6 1 . . Terminals 176 | . 15 . 14 1 . 14 . 12 . . . 26 . . . . 1 . 7 . 5 . 4 8 1 . 19 . 8 27 6 5 2 1 Fabricators 6 | . . . . . . . . . . . . 1 . . . . . . 1 . . . 4 . . . . . . . . . . . Repair Stations 5 | . . . . . . . . . . . . . . . . . . . . . . . . 5 . . . . . . . . . . Recycling Units 1 | . 1 . . . . . . . . . . . . . . . . . . . . . . . . . . . . . . . . . Scanalyzers 10 | . . . . . . . . . . . . . . . . . . . . . . . . . . . . 2 2 1 5 . . . Garrison Access 17 | . . . . 4 . 2 . 1 . 2 . . . . . . 3 . 2 . . . . . . . . . 1 1 . . 1 . Terminal Hacks 78 | . 3 . 9 1 . 4 . 3 . . . 6 . 1 19 . . . 5 . 2 . 2 4 1 . 3 . 3 9 2 . 1 . Record 6 | . . . . . . . . . . . . . . . 6 . . . . . . . . . . . . . . . . . . . Part Schematic 7 | . . . . . . . . . . . . 1 . . 6 . . . . . . . . . . . . . . . . . . . Robot Schematic 4 | . . . . . . . . . . . . . . . 4 . . . . . . . . . . . . . . . . . . . Robot Analysis 3 | . 1 . 1 . . . . 1 . . . . . . . . . . . . . . . . . . . . . . . . . . Prototype ID Bank 7 | . . . 1 . . 1 . . . . . . . . 3 . . . 1 . . . . . . . . . . 1 . . . . Open Door 6 | . . . . 1 . . . . . . . . . 1 . . . . . . . . 1 . 1 . . . . 2 . . . . Level Access Points 1 | . . . . . . . . . . . . . . . . . . . . . . . . . . . . . . 1 . . . . Branch Access Points 4 | . 1 . 1 . . . . . . . . . . . . . . . . . . . . . . . . . . . 1 . 1 . Emergency Access Points 1 | . . . . . . . . . . . . . . . . . . . . . . . . . . . . . . 1 . . . . Terminal Index 4 | . . . . . . 1 . . . . . 1 . . . . . . . . . . 1 1 . . . . . . . . . . Garrison Index 1 | . . . . . . . . . . . . . . . . . . . . . . . . . . . 1 . . . . . . . Alert Level 4 | . . . 2 . . . . . . . . . . . . . . . 1 . . . . . . . . . 1 . . . . . Unreport Threat 10 | . . . 1 . . . . 2 . . . 1 . . . . . . 1 . 1 . . 1 . . 1 . 1 . 1 . . . Locate Traps 6 | . . . . . . . . . . . . 1 . . . . . . 2 . . . . . . . . . . 3 . . . . Patrol Status 6 | . 1 . 1 . . 1 . . . . . 1 . . . . . . . . 1 . . . . . . . 1 . . . . . Recall Investigation 1 | . . . . . . . . . . . . . . . . . . . . . . . . 1 . . . . . . . . . . Recall Reinforcements 1 | . . . . . . . . . . . . . . . . . . . . . . . . . . . 1 . . . . . . . Hauler Manifests 1 | . . . . . . 1 . . . . . . . . . . . . . . . . . . . . . . . . . . . . Registered Components 1 | . . . 1 . . . . . . . . . . . . . . . . . . . . . . . . . . . . . . . Zone Layout 4 | . . . 1 . . . . . . . . 1 . . . . . . . . . . . 1 . . . . . 1 . . . . Fabricator Hacks 2 | . . . . . . . . . . . . . . . . . . . . . . . 2 . . . . . . . . . . . Load Schematic 1 | . . . . . . . . . . . . . . . . . . . . . . . 1 . . . . . . . . . . . Build 1 | . . . . . . . . . . . . . . . . . . . . . . . 1 . . . . . . . . . . . Repair Station Hacks 4 | . . . . . . . . . . . . . . . . . . . . . . . . 4 . . . . . . . . . . Scan Component 2 | . . . . . . . . . . . . . . . . . . . . . . . . 2 . . . . . . . . . . Repair 2 | . . . . . . . . . . . . . . . . . . . . . . . . 2 . . . . . . . . . . Recycling Unit Hacks . | . . . . . . . . . . . . . . . . . . . . . . . . . . . . . . . . . . . Scanalyzer 6 | . . . . . . . . . . . . . . . . . . . . . . . . . . . . . 2 . 4 . . . Insert Component 6 | . . . . . . . . . . . . . . . . . . . . . . . . . . . . . 2 . 4 . . . Garrison Access Hacks 12 | . . . . 1 . 2 . 1 . 2 . . . . . . 1 . 2 . . . . . . . . . 1 1 . . 1 . Unlock Access 6 | . . . . 1 . 1 . 1 . 1 . . . . . . 1 . 1 . . . . . . . . . . . . . . . Seal Access 3 | . . . . . . . . . . . . . . . . . . . . . . . . . . . . . 1 1 . . 1 . Coupler Status 3 | . . . . . . 1 . . . 1 . . . . . . . . 1 . . . . . . . . . . . . . . . Unauthorized Hacks 18 | . 3 . . . . 3 . . . . . 2 . . . . 1 . . . . . 1 2 . . 3 . 1 2 . . . . Terminals 16 | . 2 . . . . 3 . . . . . 2 . . . . . . . . . . 1 2 . . 3 . 1 2 . . . . Assimilate 2 | . . . . . . . . . . . . 1 . . . . . . . . . . . . . . 1 . . . . . . . Botnet 8 | . 2 . . . . 2 . . . . . . . . . . . . . . . . 1 1 . . 1 . . 1 . . . . Operators 5 | . . . . . . 1 . . . . . 1 . . . . . . . . . . . 1 . . . . 1 1 . . . . Sabotage 1 | . . . . . . . . . . . . . . . . . . . . . . . . . . . 1 . . . . . . . Fabricators . | . . . . . . . . . . . . . . . . . . . . . . . . . . . . . . . . . . . Repair Stations . | . . . . . . . . . . . . . . . . . . . . . . . . . . . . . . . . . . . Recycling Units 1 | . 1 . . . . . . . . . . . . . . . . . . . . . . . . . . . . . . . . . Tunnel 1 | . 1 . . . . . . . . . . . . . . . . . . . . . . . . . . . . . . . . . Scanalyzers . | . . . . . . . . . . . . . . . . . . . . . . . . . . . . . . . . . . . Garrison Access 1 | . . . . . . . . . . . . . . . . . 1 . . . . . . . . . . . . . . . . . Eject 1 | . . . . . . . . . . . . . . . . . 1 . . . . . . . . . . . . . . . . . Data Cores Recovered 1 | . . . 1 . . . . . . . . . . . . . . . . . . . . . . . . . . . . . . . Used . | . . . . . . . . . . . . . . . . . . . . . . . . . . . . . . . . . . . Hacking Detections 56 | . 4 . 4 1 . 3 . 2 . 1 . 8 . . . . 2 . 5 . 1 . 2 3 . . 5 1 2 8 1 1 1 1 Full Trace Events 8 | . 2 . . . . . . . . . . 3 . . . . . . . . . . . 1 . . 2 . . . . . . . Feedback Events . | . . . . . . . . . . . . . . . . . . . . . . . . . . . . . . . . . . . Feedback Blocked . | . . . . . . . . . . . . . . . . . . . . . . . . . . . . . . . . . . . Robot Schematics Acquired 4 | . . . . . . . . . . . . . . . 4 . . . . . . . . . . . . . . . . . . . Robots Built . | . . . . . . . . . . . . . . . . . . . . . . . . . . . . . . . . . . . Matter . | . . . . . . . . . . . . . . . . . . . . . . . . . . . . . . . . . . . Time . | . . . . . . . . . . . . . . . . . . . . . . . . . . . . . . . . . . . Total Robot Build Rating . | . . . . . . . . . . . . . . . . . . . . . . . . . . . . . . . . . . . Part Schematics Acquired 7 | . . . . . . . . . . . . 1 . . 6 . . . . . . . . . . . . . . . . . . . Parts Built 1 | . . . . . . . . . . . . . . . . . . . . . . . 1 . . . . . . . . . . . Matter 384 | . . . . . . . . . . . . . . . . . . . . . . . 384 . . . . . . . . . . . Time 102 | . . . . . . . . . . . . . . . . . . . . . . . 102 . . . . . . . . . . . Total Part Build Rating 8 | . . . . . . . . . . . . . . . . . . . . . . . 8 . . . . . . . . . . . Parts Repaired 2 | . . . . . . . . . . . . . . . . . . . . . . . . 2 . . . . . . . . . . Time 192 | . . . . . . . . . . . . . . . . . . . . . . . . 192 . . . . . . . . . . Parts Recycled . | . . . . . . . . . . . . . . . . . . . . . . . . . . . . . . . . . . . Recycled Matter . | . . . . . . . . . . . . . . . . . . . . . . . . . . . . . . . . . . . Retrieved Matter . | . . . . . . . . . . . . . . . . . . . . . . . . . . . . . . . . . . . Retrieved Components . | . . . . . . . . . . . . . . . . . . . . . . . . . . . . . . . . . . . Parts Scanalyzed . | . . . . . . . . . . . . . . . . . . . . . . . . . . . . . . . . . . . Part Schematics Acquired . | . . . . . . . . . . . . . . . . . . . . . . . . . . . . . . . . . . . Parts Damaged . | . . . . . . . . . . . . . . . . . . . . . . . . . . . . . . . . . . . Bothacking | -11 -10 -10 -9 -9 -9 -8 -8 -8 -8 -7 -7 -7 -7 -7 -7 -6 -6 -6 -5 -5 -4 -4 -4 -4 -4 -4 -4 -3 -3 -3 -2 -2 -1 -1 ------------ Run | Scr Mat Min Mat Sto Gar Mat Gar Mat Gar Fac Gar Fac Low Low Dat Pro Fac Gar Fac Gar Fac Was Fac Ext Cet Arc Hub Res Qua Sec Res Tes Acc Com Used RIF Installer 6 | . . . . . 1 . 1 . 1 . 1 . . . . . . 1 . 1 . . . . . . . . . . . . . . Hotswap 1 | . . . . . . . 1 . . . . . . . . . . . . . . . . . . . . . . . . . . . Command Fork 1 | . . . . . . . . . . . . . . . . . . . . 1 . . . . . . . . . . . . . . Signal Jammer 1 | . . . . . . . . . . . 1 . . . . . . . . . . . . . . . . . . . . . . . Alert ID Control 1 | . . . . . . . . . 1 . . . . . . . . . . . . . . . . . . . . . . . . . Autoassimilate 1 | . . . . . . . . . . . . . . . . . . 1 . . . . . . . . . . . . . . . . Robots Hacked 3 | . . . . . . . . . . . . . . . . . . . . . . . . . . . . . . 3 . . . . Non-combat . | . . . . . . . . . . . . . . . . . . . . . . . . . . . . . . . . . . . Combat 3 | . . . . . . . . . . . . . . . . . . . . . . . . . . . . . . 3 . . . . Robot Hacks Applied 4 | . . . . . . . . . . . . . . . . . . . . . . . . . . . . . . 4 . . . . disable_scanner 3 | . . . . . . . . . . . . . . . . . . . . . . . . . . . . . . 3 . . . . locate_prototypes 1 | . . . . . . . . . . . . . . . . . . . . . . . . . . . . . . 1 . . . . Relay Couplers Released 7 | . . . . . . . . . . . . . . . . . 4 . . 3 . . . . . . . . . . . . . . Ejected 4 | . . . . . . . . . . . . . . . . . 4 . . . . . . . . . . . . . . . . . Machine Destruction 3 | . . . . . . . . . . . . . . . . . . . . 3 . . . . . . . . . . . . . . Attached 1 | . . . . . . . . . . . . . . . . . . . . . . . . . . . . . . 1 . . . . Robots Rewired 5 | . . . . . . . . . . . . . . . . . . . 1 . . . . 4 . . . . . . . . . . Allies Hacked 2 | . . . . . . . . . . . . . . . . . . . . . . . . . . . . 2 . . . . . . Hacks Repelled . | . . . . . . . . . . . . . . . . . . . . . . . . . . . . . . . . . . . Allies | -11 -10 -10 -9 -9 -9 -8 -8 -8 -8 -7 -7 -7 -7 -7 -7 -6 -6 -6 -5 -5 -4 -4 -4 -4 -4 -4 -4 -3 -3 -3 -2 -2 -1 -1 -------- Run | Scr Mat Min Mat Sto Gar Mat Gar Mat Gar Fac Gar Fac Low Low Dat Pro Fac Gar Fac Gar Fac Was Fac Ext Cet Arc Hub Res Qua Sec Res Tes Acc Com Total Allies 38 | . . . . . . . . . . . . 1 . . . 1 . . 1 . . . . 12 5 . . 18 . . . . . . Largest Group 13 | . . . . . . . . . . . . 1 . . . 1 . . 1 1 . . . 8 8 4 . 13 . . . . . . Highest-Rated Group 729 | . . . . . . . . . . . . 10 . . . 95 . . 65 65 . . . 445 615 412 . 729 . . . . . . Highest-Rated Ally 156 | . . . . . . . . . . . . 10 . . . 95 . . 65 65 . . . 156 156 134 . 75 . . . . . . Total Orders 11 | . . . . . . 1 . . . . . 4 . . . . . . . 1 2 . . . 2 1 . . . . . . . . STAY 5 | . . . . . . . . . . . . 2 . . . . . . . 1 . . . . 2 . . . . . . . . . ROAM 1 | . . . . . . . . . . . . . . . . . . . . . . . . . . 1 . . . . . . . . FOLLOW 2 | . . . . . . . . . . . . 2 . . . . . . . . . . . . . . . . . . . . . . EXPLORE 2 | . . . . . . . . . . . . . . . . . . . . . 2 . . . . . . . . . . . . . RETURN 1 | . . . . . . 1 . . . . . . . . . . . . . . . . . . . . . . . . . . . . Ally Attacks 281 | . . . . . . . . . . . . . . . . 5 . . . . . . . 105 83 28 . 60 . . . . . . Total Damage 7763 | . . . . . . . . . . . . . . . . 93 . . . . . . . 2659 2727 993 . 1291 . . . . . . Kills 38 | . . . . . . . . . . . . . . . . . . . . . . . . 15 12 3 . 8 . . . . . . Allies Corrupted . | . . . . . . . . . . . . . . . . . . . . . . . . . . . . . . . . . . . Allies Melted 1 | . . . . . . . . . . . . . . . . . . . . . . . . 1 . . . . . . . . . . Intel | -11 -10 -10 -9 -9 -9 -8 -8 -8 -8 -7 -7 -7 -7 -7 -7 -6 -6 -6 -5 -5 -4 -4 -4 -4 -4 -4 -4 -3 -3 -3 -2 -2 -1 -1 ------- Run | Scr Mat Min Mat Sto Gar Mat Gar Mat Gar Fac Gar Fac Low Low Dat Pro Fac Gar Fac Gar Fac Was Fac Ext Cet Arc Hub Res Qua Sec Res Tes Acc Com Robot Analysis Total 3 | . 1 . 1 . . . . 1 . . . . . . . . . . . . . . . . . . . . . . . . . . Derelict Logs Recovered 5 | . . 2 . . . . . . . . . . 1 2 . . . . . . . . . . . . . . . . . . . . Drone Launches 4 | . . . . . . 2 . . . . . . . . . . . . . . 2 . . . . . . . . . . . . . Drone Recoveries 2 | . . . . . . 2 . . . . . . . . . . . . . . . . . . . . . . . . . . . . Exploration | -11 -10 -10 -9 -9 -9 -8 -8 -8 -8 -7 -7 -7 -7 -7 -7 -6 -6 -6 -5 -5 -4 -4 -4 -4 -4 -4 -4 -3 -3 -3 -2 -2 -1 -1 ------------- Run | Scr Mat Min Mat Sto Gar Mat Gar Mat Gar Fac Gar Fac Low Low Dat Pro Fac Gar Fac Gar Fac Was Fac Ext Cet Arc Hub Res Qua Sec Res Tes Acc Com Turns Passed 25836 | 243 3054 916 1500 219 187 315 294 662 554 95 305 2147 297 522 115 650 636 303 584 1005 570 483 558 1237 470 247 803 1790 1000 1599 821 305 1097 253 Spaces Moved 12061 | 126 470 536 634 97 108 182 151 266 313 61 183 1284 213 382 93 397 296 194 414 548 390 315 273 658 215 95 318 540 520 630 408 163 475 113 Core 18 | 18 . . . . . . . . . . . . . . . . . . . . . . . . . . . . . . . . . . Treads 6664 | 44 439 536 634 97 108 182 151 266 177 . . . . . . . . . . . . 235 273 658 215 95 318 127 320 630 408 163 475 113 Legs 4442 | 64 31 . . . . . . . 136 61 183 1284 213 382 93 397 296 194 414 81 . . . . . . . 413 200 . . . . . Wheels 937 | . . . . . . . . . . . . . . . . . . . . 467 390 80 . . . . . . . . . . . . Hover . | . . . . . . . . . . . . . . . . . . . . . . . . . . . . . . . . . . . Flight . | . . . . . . . . . . . . . . . . . . . . . . . . . . . . . . . . . . . Fastest Speed 50 | 50 120 160 145 145 152 155 155 155 120 120 120 120 120 120 120 120 120 120 120 105 105 105 160 160 160 160 155 114 112 151 151 155 155 160 Average Speed 140 | 126 183 160 145 149 152 155 155 159 144 120 120 122 120 120 120 120 120 120 120 114 105 146 160 160 160 160 159 129 136 153 153 155 157 160 Slowest Speed 360 | 200 360 160 160 152 152 155 155 160 200 120 120 280 120 120 120 120 120 120 120 280 105 260 160 160 160 160 160 194 245 160 155 155 160 160 Overloaded Moves . | . . . . . . . . . . . . . . . . . . . . . . . . . . . . . . . . . . . Propulsion Burnouts . | . . . . . . . . . . . . . . . . . . . . . . . . . . . . . . . . . . . Robots Hopped . | . . . . . . . . . . . . . . . . . . . . . . . . . . . . . . . . . . . Cave-ins Triggered 2 | . . . . . . . . . . . . . . . . . . . . . . . . . . . . . . 2 . . . . Teleports 2 | . . . . . . . . . . . . . . . . . . . . . . . . . . . . . . . 2 . . . Exploration Rate (%) 38 | 5 39 100 43 14 44 18 37 35 59 2 35 32 37 52 70 61 8 38 13 61 16 92 10 69 71 71 38 12 51 45 12 36 17 7 Regions Visited 34 Branch Regions 14 Pre-discovered Areas 6 | . 1 2 . . . . . . . . . . 1 1 1 . . . . . . . . . . . . . . . . . . . Known Exits Taken 12 | . 1 . 1 1 . 1 . 1 . 1 . . . . . 1 1 . 1 . . . . . . . . . . 1 1 . 1 . Unknown Exits Taken 14 | 1 . 1 . . . . . . . . . 1 1 1 1 . . . . . . . 1 1 1 1 1 1 1 . . 1 . . Scrap Searched 5 | . . 1 . . . . . . . . . . 1 2 . 1 . . . . . . . . . . . . . . . . . . Spaces Dug 107 | . 2 . 16 . . . . . . . 6 2 8 . . . . . . 16 . . 1 . . . 10 1 26 13 . . 6 . Terrain Destroyed 850 | . 16 9 86 2 . 6 4 3 23 . 8 41 16 20 . . 15 26 . 38 13 . 14 11 16 17 210 2 26 18 105 14 91 . Melee 21 | . . . . . . . . . . . . 2 . . . . . . . . . . . . . . . . 2 12 . . 5 . Projectile 152 | . 4 . 1 2 . 2 . 3 . . . . . . . . 7 1 . 7 13 . 14 11 16 17 40 1 2 6 1 . 4 . AOE 676 | . 12 9 85 . . 4 4 . 23 . 8 39 16 20 . . 8 25 . 31 . . . . . . 170 . 22 . 104 14 82 . Terrain Rammed . | . . . . . . . . . . . . . . . . . . . . . . . . . . . . . . . . . . . Walls Destroyed . | . . . . . . . . . . . . . . . . . . . . . . . . . . . . . . . . . . . Machines Disabled . | . . . . . . . . . . . . . . . . . . . . . . . . . . . . . . . . . . . Actions | -11 -10 -10 -9 -9 -9 -8 -8 -8 -8 -7 -7 -7 -7 -7 -7 -6 -6 -6 -5 -5 -4 -4 -4 -4 -4 -4 -4 -3 -3 -3 -2 -2 -1 -1 --------- Run | Scr Mat Min Mat Sto Gar Mat Gar Mat Gar Fac Gar Fac Low Low Dat Pro Fac Gar Fac Gar Fac Was Fac Ext Cet Arc Hub Res Qua Sec Res Tes Acc Com Total 18973 | 179 2611 566 1096 155 115 202 202 425 373 82 229 1654 236 422 96 500 468 229 480 793 510 338 371 818 293 155 478 1569 735 1075 503 193 669 153 Wait 4533 | 18 2076 7 274 32 . 4 42 87 6 18 5 168 3 20 . 25 75 5 5 50 58 . 68 107 40 24 54 896 66 239 10 2 34 15 Move 12031 | 125 469 535 633 97 107 182 150 266 312 60 182 1283 212 381 92 396 296 193 414 547 390 314 272 657 214 94 317 539 519 627 407 162 474 113 Hop . | . . . . . . . . . . . . . . . . . . . . . . . . . . . . . . . . . . . Pick Up 186 | 6 11 2 19 5 . 2 . 6 5 1 1 12 4 2 . 2 4 1 2 4 5 1 4 1 3 3 3 20 13 16 5 6 16 1 Fast Attach 273 | 9 4 . 11 2 . 1 . 5 4 . 3 24 1 3 2 14 16 8 16 20 9 9 3 6 3 2 13 25 27 18 4 1 9 1 Attach 130 | . 2 1 11 . . 2 1 2 2 2 . 15 1 . . 4 1 1 1 7 5 . . 2 1 3 5 9 10 15 6 2 13 6 Detach 74 | . 2 . . . . . . . . . . 7 . . . 3 2 . 6 7 3 1 1 2 1 2 6 8 4 11 1 1 5 1 Swap 192 | 2 11 2 16 3 . 3 3 4 3 1 6 9 2 2 . . 4 1 2 10 8 . 4 3 1 4 14 8 12 12 15 4 21 2 Drop 355 | 4 11 2 25 7 . 1 1 12 11 . 5 23 4 3 2 12 15 2 15 16 12 13 6 3 5 5 4 36 43 27 7 3 20 . Fire 951 | 15 23 13 68 9 8 7 5 42 25 . 22 94 9 11 . 44 54 18 12 115 20 . 11 11 25 18 57 28 32 25 43 11 70 6 Melee 112 | . . . . . . . . . . . . 2 . . . . . . . . . . . . . . . . 7 83 5 1 6 8 Ram . | . . . . . . . . . . . . . . . . . . . . . . . . . . . . . . . . . . . Kick 20 | . . . . . . . . . . . . 17 . . . . 1 . 2 . . . . . . . . . . . . . . . Crush 56 | . 2 4 39 . . . . 1 . . . . . . . . . . . . . . 2 . . . 5 . 2 . . . 1 . Escape Stasis 28 | . . . . . . . . . 5 . 5 . . . . . . . . 16 . . . . . . . . . 2 . . . . Rewire 32 | . . . . . . . . . . . . . . . . . . . 5 1 . . . 26 . . . . . . . . . . Trap . | . . . . . . . . . . . . . . . . . . . . . . . . . . . . . . . . . . . Miscellaneous . | . . . . . . . . . . . . . . . . . . . . . . . . . . . . . . . . . . . Route ------- -11/Scrapyard -10/Materials (discovered 2 exits: *Mat / *Min) -10/Mines (discovered 2 exits: *Mat x2) -9/Materials (discovered 3 exits: *Mat / Min / *Sto) -9/Storage -9/Garrison -8/Materials -8/Garrison -8/Materials (discovered 2 exits: *Fac / Gar) -8/Garrison (discovered 2 exits: *Fac x2) -7/Factory -7/Garrison -7/Factory (discovered 2 exits: *Fac / [*Low]) -7/Lower Caves -7/Lower Caves (discovered 2 exits: Fac / *Dat) -7/Data Miner -6/Proximity Caves -6/Factory (discovered 2 exits: *Fac / Gar) -6/Garrison -5/Factory -5/Garrison (discovered 2 exits: *Fac x2) -4/Factory -4/Waste -4/Factory -4/Extension (discovered 2 exits: *Res / *Cet) -4/Cetus -4/Archives (discovered 3 exits: Res / *Hub x2) -4/Hub_04(d) (discovered 2 exits: *Res x2) -3/Research -3/Quarantine (discovered 2 exits: *Res / *Sec) -3/Section 7 -2/Research (discovered 2 exits: *Tes x2) -2/Testing -1/Access -1/Command History --------- Turn | Location | Event 8 | -11/Scrapyard | Discovered new exit (range 15) 244 | -11/Scrapyard | Entered Materials 322 | -10/Materials | Build established: Mutant 1829 | -10/Materials | Identified exit to Mines 3267 | -10/Materials | Discovered new exit (range 14) 3298 | -10/Materials | Entered Mines 3352 | -10/Mines | YI-UF0 nonchalantly dropped a Grenade Launcher on the ground 3357 | -10/Mines | Destroyed YI-UF0 3369 | -10/Mines | Learned location of Zion (-6) 3455 | -10/Mines | Learned location of Storage (-9) 3461 | -10/Mines | Discovered new exit (range 8) 3680 | -10/Mines | Learned Materials garrison access intel 4144 | -10/Mines | Discovered new exit (range 10) 4214 | -10/Mines | Entered Materials 4214 | -9/Materials | Evolved 2 slots: Utility x2 5126 | -9/Materials | Discovered new exit (range 16) 5321 | -9/Materials | Discovered new exit (range 8) 5499 | -9/Materials | Identified exit to Mines 5499 | -9/Materials | Identified exit to Storage 5714 | -9/Materials | Entered Storage 5933 | -9/Storage | Identified exit to Garrison 5933 | -9/Storage | Entered Garrison 6000 | -9/Garrison | Triggered checkpoint 6076 | -9/Garrison | Discovered new exit (range 15) 6114 | -9/Garrison | Installed Relay Interface Framework 6120 | -9/Garrison | Entered Materials 6120 | -8/Materials | Evolved 2 slots: Propulsion x2 6121 | -8/Materials | Loaded intel: 1 garrison access location 6435 | -8/Materials | Identified exit to Garrison 6435 | -8/Materials | Entered Garrison 6443 | -8/Garrison | Expanded RIF knowledge: Hotswap 6591 | -8/Garrison | Destroyed 8 combat bots 6652 | -8/Garrison | Triggered checkpoint 6701 | -8/Garrison | Discovered new exit (range 12) 6729 | -8/Garrison | Entered Materials 7089 | -8/Materials | System corruption reached 10% 7132 | -8/Materials | Discovered new exit (range 16) 7134 | -8/Materials | Build established: Scavenger-Mutant 7391 | -8/Materials | Identified exit to Garrison 7391 | -8/Materials | Entered Garrison 7652 | -8/Garrison | Discovered new exit (range 15) 7748 | -8/Garrison | Triggered checkpoint 7810 | -8/Garrison | Discovered new exit (range 9) 7828 | -8/Garrison | Expanded RIF knowledge: Alert ID Control 7945 | -8/Garrison | Entered Factory 7945 | -7/Factory | Evolved 2 slots: Power x1, Propulsion x1 8029 | -7/Factory | Identified exit to Garrison 8040 | -7/Factory | Entered Garrison 8240 | -7/Garrison | Triggered checkpoint 8321 | -7/Garrison | Discovered new exit (range 10) 8339 | -7/Garrison | Expanded RIF knowledge: Signal Jamming 8345 | -7/Garrison | Entered Factory 8619 | -7/Factory | Discovered new exit (range 15) 9846 | -7/Factory | Discovered new exit (range 3) 9915 | -7/Factory | Cargo convoy interrupted 9976 | -7/Factory | Destroyed 13 combat bots 9978 | -7/Factory | Lost 10 parts (1p4n3u2w) 10024 | -7/Factory | System corruption reached 10% 10042 | -7/Factory | System corruption reached 30% 10224 | -7/Factory | Build established: Mutant 10345 | -7/Factory | First assault squad dispatched 10492 | -7/Factory | Entered Lower Caves 10778 | -7/Lower Caves | Discovered new exit (range 8) 10789 | -7/Lower Caves | Entered another Lower Caves area 10803 | -7/Lower Caves | Core integrity fell below 50% 10855 | -7/Lower Caves | Spotted B-75 Beast 10896 | -7/Lower Caves | Identified exit to Factory 11160 | -7/Lower Caves | Discovered new exit (range 12) 11311 | -7/Lower Caves | Entered Data Miner 11312 | -7/Data Miner | Discovered new exit (range 6) 11335 | -7/Data Miner | Met Data Miner 11359 | -7/Data Miner | Learned location of Section 7 (-3) 11359 | -7/Data Miner | Acquired the access code to Warlord's prototype stash 11376 | -7/Data Miner | Received God Mode back door access code from Data Miner 11426 | -7/Data Miner | Entered Proximity Caves 11578 | -6/Proximity Caves | Escorted by Enhanced Grunt 11647 | -6/Proximity Caves | Found Prototype Device 11647 | -6/Proximity Caves | Identified Exp. Thermal Shield 11746 | -6/Proximity Caves | Found Alien Artifact 11887 | -6/Proximity Caves | Attracted the attention of an 0b10 checkpoint 12053 | -6/Proximity Caves | Discovered exit to Factory (range 16) 12076 | -6/Proximity Caves | Entered Factory 12076 | -6/Factory | Evolved 2 slots: Propulsion x1, Utility x1 12119 | -6/Factory | Build established: Scavenger-Mutant 12676 | -6/Factory | Garrison activated, responded to threat 12689 | -6/Factory | Discovered new exit (range 18) 12712 | -6/Factory | Identified exit to Garrison 12712 | -6/Factory | Entered Garrison 12718 | -6/Garrison | Expanded RIF knowledge: Autoassimilate 12734 | -6/Garrison | Triggered checkpoint 12832 | -6/Garrison | Triggered checkpoint 12867 | -6/Garrison | Destroyed 10 combat bots 12875 | -6/Garrison | Lost 6 parts (2p1n2u1w) 13002 | -6/Garrison | Discovered new exit (range 9) 13015 | -6/Garrison | Entered Factory 13015 | -5/Factory | Evolved 2 slots: Power x1, Weapon x1 13330 | -5/Factory | Build established: Scavenger-Tank 13553 | -5/Factory | Spotted B-75 Beast 13598 | -5/Factory | Identified exit to Garrison 13599 | -5/Factory | Entered Garrison 13599 | -5/Garrison | Accompanied by 1 ally 13632 | -5/Garrison | Triggered checkpoint 13647 | -5/Garrison | Spotted B-75 Beast 13655 | -5/Garrison | Triggered checkpoint 13657 | -5/Garrison | Triggered checkpoint 13659 | -5/Garrison | P-70 Sage assimilated allied Archangel 6a 13715 | -5/Garrison | Lost 5 parts (1p1n2u1w) 13726 | -5/Garrison | Destroyed 7 combat bots 13751 | -5/Garrison | Destroyed B-75 Beast 14040 | -5/Garrison | Triggered checkpoint 14120 | -5/Garrison | Discovered new exit (range 15) 14223 | -5/Garrison | Discovered new exit (range 15) 14248 | -5/Garrison | Expanded RIF knowledge: Command Fork 14330 | -5/Garrison | Triggered checkpoint 14352 | -5/Garrison | Garrison Relay disabled 14604 | -5/Garrison | Entered Factory 14604 | -4/Factory | Evolved 2 slots: Utility x1, Weapon x1 14658 | -4/Factory | Spotted B-86 Titan 14857 | -4/Factory | Found Prototype Processor 14857 | -4/Factory | Identified Exp. Melee Analysis Suite 15174 | -4/Factory | Sucked down chute 15174 | -4/Factory | Entered Waste 15174 | -4/Waste | The area was eerily silent 15204 | -4/Waste | Found Unknown Launcher 15204 | -4/Waste | Identified Fusion Bomb Launcher 15289 | -4/Waste | Found Adv. Powered Armor 15292 | -4/Waste | Discovered new exit (range 12) 15424 | -4/Waste | Found Broken Exp. Terrain Scan Processor 15554 | -4/Waste | Build established: Generator-Tank 15657 | -4/Waste | Entered Factory 15839 | -4/Factory | Fabricated Exp. Terrain Scanner (x1) 15859 | -4/Factory | Local fabrication network quarantined 16208 | -4/Factory | Discovered new exit (range 6) 16215 | -4/Factory | Entered Extension 16316 | -4/Extension | Destroyed 7 combat bots 16392 | -4/Extension | Repaired Broken Exp. Terrain Scan Processor 16426 | -4/Extension | Incoming investigation squad redirected 16444 | -4/Extension | Rescued a captive Derelict 16444 | -4/Extension | Rescued a captive Derelict 16467 | -4/Extension | Repaired Adv. Powered Armor? 16797 | -4/Extension | Spotted B-86 Titan 16805 | -4/Extension | Destroyed B-86 Titan 16829 | -4/Extension | Spotted B-86 Titan 16842 | -4/Extension | Allies destroyed B-86 Titan 16886 | -4/Extension | Rescued a captive Derelict 16944 | -4/Extension | Rescued a captive Derelict 17045 | -4/Extension | Build established: Scavenger-Tank 17097 | -4/Extension | Discovered new exit (range 16) 17100 | -4/Extension | Discovered new exit (range 14) 17216 | -4/Extension | Rescued a captive Derelict 17217 | -4/Extension | Rescued a captive Derelict 17265 | -4/Extension | Rescued a captive Derelict 17303 | -4/Extension | Rescued A7 17452 | -4/Extension | Entered Cetus 17452 | -4/Cetus | Accompanied by 8 allies (A7) 17457 | -4/Cetus | Acquired a Cetus Manufacturing Module code from A7 17472 | -4/Cetus | Spotted Cetus Guard 17472 | -4/Cetus | Spotted Cetus Guard 17472 | -4/Cetus | Allies destroyed Cetus Guard 17473 | -4/Cetus | Spotted Cetus Guard 17478 | -4/Cetus | Spotted Cetus Guard 17482 | -4/Cetus | Allies destroyed Cetus Guard 17488 | -4/Cetus | Destroyed Cetus Guard 17504 | -4/Cetus | Allies destroyed Cetus Guard 17509 | -4/Cetus | Build established: Generator-Tank 17626 | -4/Cetus | Started Cetus Manufacturing Module 17638 | -4/Cetus | Escorted A7 to Cetus Mainframe 17651 | -4/Cetus | Manufactured an Enhanced Grunt 17676 | -4/Cetus | Manufactured an Enhanced Grunt 17701 | -4/Cetus | Manufactured an Enhanced Grunt 17726 | -4/Cetus | Manufactured an Enhanced Grunt 17751 | -4/Cetus | Manufactured an Enhanced Grunt 17816 | -4/Cetus | Discovered new exit (range 16) 17843 | -4/Cetus | Spotted Cetus Guard 17843 | -4/Cetus | Spotted Cetus Guard 17844 | -4/Cetus | Spotted Cetus Guard 17848 | -4/Cetus | Destroyed Cetus Guard 17853 | -4/Cetus | Spotted Cetus Guard 17856 | -4/Cetus | Destroyed Cetus Guard 17870 | -4/Cetus | Allies destroyed Cetus Guard 17874 | -4/Cetus | Allies destroyed Cetus Guard 17922 | -4/Cetus | Entered Archives 17922 | -4/Archives | Accompanied by 4 allies (A7) 17927 | -4/Archives | Received a hacking code to weaken MAIN.C 18051 | -4/Archives | Discovered new exit (range 14) 18109 | -4/Archives | Discovered new exit (range 25) 18124 | -4/Archives | Discovered new exit (range 19) 18169 | -4/Archives | Entered Hub_04(d) 18550 | -4/Hub_04(d) | Network Hub disabled 18558 | -4/Hub_04(d) | System corruption reached 10% 18646 | -4/Hub_04(d) | Incoming investigation squad redirected 18692 | -4/Hub_04(d) | Destroyed 7 combat bots 18695 | -4/Hub_04(d) | System corruption reached 30% 18744 | -4/Hub_04(d) | Discovered new exit (range 26) 18800 | -4/Hub_04(d) | Discovered new exit (range 27) 18919 | -4/Hub_04(d) | First assault squad dispatched 18931 | -4/Hub_04(d) | Destroyed 7 combat bots 18965 | -4/Hub_04(d) | Incoming investigation squad redirected 18972 | -4/Hub_04(d) | Entered Research 18972 | -3/Research | Evolved 2 slots: Utility x2 19111 | -3/Research | Build established: Scavenger-Tank 19268 | -3/Research | First assault squad dispatched 19295 | -3/Research | Incoming assault squad redirected 19756 | -3/Research | Cargo convoy interrupted 19779 | -3/Research | Incoming assault squad redirected 19792 | -3/Research | Revision forces began assault on 0b10 19797 | -3/Research | Met up with Revision 17++ 19880 | -3/Research | Found Exp. Terrain Scan Processor 19883 | -3/Research | Found Prototype Processor 19883 | -3/Research | Identified Exp. Core Analyzer 19893 | -3/Research | Discovered new exit (range 27) 19901 | -3/Research | Found Prototype Launcher 19901 | -3/Research | Identified Hellfire Missile Launcher 19905 | -3/Research | Found Hellfire Missile Launcher 20292 | -3/Research | Research terminal network offline 20762 | -3/Research | Entered Quarantine 20804 | -3/Quarantine | Found Alien Impact Weapon 20839 | -3/Quarantine | Found Alien Slashing Weapon 20839 | -3/Quarantine | Identified Sigix Broadsword 21096 | -3/Quarantine | Found Alien Artifact 21149 | -3/Quarantine | Build established: Scavenger-Mutant 21153 | -3/Quarantine | Cryocooling Duct disabled 21168 | -3/Quarantine | Ambient heat levels rising (+20) 21168 | -3/Quarantine | Non-combat units ordered to evacuate 21387 | -3/Quarantine | Discovered new exit (range 10) 21409 | -3/Quarantine | Found Alien Artifact 21409 | -3/Quarantine | Identified Subatomic Replicator 21487 | -3/Quarantine | Build established: Scavenger-Gunner 21503 | -3/Quarantine | Identified Core Reset Matrix 21503 | -3/Quarantine | Identified Core Stripper 21594 | -3/Quarantine | Spotted Fortress 21600 | -3/Quarantine | Destroyed Fortress 21611 | -3/Quarantine | Found Prototype Reactor 21611 | -3/Quarantine | Identified Vortex Chain Reactor 21614 | -3/Quarantine | Found Vortex Chain Reactor 21635 | -3/Quarantine | Found Prototype Device 21635 | -3/Quarantine | Identified EM Dispersion Field 21650 | -3/Quarantine | Found Prototype Device 21650 | -3/Quarantine | Identified Exp. Force Field 21723 | -3/Quarantine | Discovered new exit (range 26) 21762 | -3/Quarantine | Entered Section 7 21885 | -3/Section 7 | Build established: Generator-Mutant 21946 | -3/Section 7 | Found Alien Artifact 22112 | -3/Section 7 | Found Integrated Dissipator 22112 | -3/Section 7 | Installed Integrated Dissipator, increased core heat dissipation (+20) 22147 | -3/Section 7 | Spotted S7 Guard 22188 | -3/Section 7 | Destroyed S7 Guard 22207 | -3/Section 7 | Found Prototype Protection 22207 | -3/Section 7 | Identified Hvy. Regenerative Plating 22237 | -3/Section 7 | Installed Integrated Dissipator, increased core heat dissipation (+20) 22246 | -3/Section 7 | Found Core Regenerator 22267 | -3/Section 7 | Found Unknown Piercing Weapon 22267 | -3/Section 7 | Identified Enh. Force Lance 22337 | -3/Section 7 | Found Tactical Quantum Warhead 22476 | -3/Section 7 | Spotted S7 Guard 22488 | -3/Section 7 | Destroyed S7 Guard 22528 | -3/Section 7 | Found Alien Artifact 22577 | -3/Section 7 | Identified exit to Research 22629 | -3/Section 7 | Spotted Executioner 22630 | -3/Section 7 | Spotted Executioner 22642 | -3/Section 7 | Destroyed Executioner 22650 | -3/Section 7 | Destroyed Executioner 22721 | -3/Section 7 | Found Alien Artifact 22726 | -3/Section 7 | Found Alien Artifact 22728 | -3/Section 7 | Found Alien Artifact 22741 | -3/Section 7 | Found Alien Artifact 22741 | -3/Section 7 | Identified Matter Drive 23012 | -3/Section 7 | First assault squad dispatched 23031 | -3/Section 7 | Incoming assault squad redirected 23035 | -3/Section 7 | Incoming assault squad redirected 23084 | -3/Section 7 | Found Alien Artifact 23084 | -3/Section 7 | Identified LRC Insulator 23084 | -3/Section 7 | Installed LRC Insulator, gained EM resistance (25) 23087 | -3/Section 7 | Found LRC Insulator 23087 | -3/Section 7 | Installed LRC Insulator, gained EM resistance (25) 23144 | -3/Section 7 | Found Alien Artifact 23148 | -3/Section 7 | Found Alien Artifact 23206 | -3/Section 7 | Crushed by falling debris 23213 | -3/Section 7 | Crushed by falling debris 23272 | -3/Section 7 | Spotted S7 Guard 23331 | -3/Section 7 | Destroyed S7 Guard 23346 | -3/Section 7 | Found Alien Artifact 23361 | -3/Section 7 | Entered Research 23361 | -2/Research | Evolved 2 slots: Utility x2 23409 | -2/Research | Discovered new exit (range 28) 23509 | -2/Research | Found Exp. Force Field 23756 | -2/Research | Identified Transdimensional Reconstructor (x3) 23756 | -2/Research | Identified Integrity Redistributor (x2) 23756 | -2/Research | Identified Core Membrane 23756 | -2/Research | Identified Core Physics Calibrator 23756 | -2/Research | Installed Core Membrane, gained immunity to corruption 23776 | -2/Research | Identified exit to Testing 23905 | -2/Research | Cargo convoy interrupted 23906 | -2/Research | Warped through subspace 23918 | -2/Research | Warped through subspace 23928 | -2/Research | Incoming assault squad redirected 24182 | -2/Research | Entered Testing 24326 | -2/Testing | Found Exp. Terrain Scan Processor 24421 | -2/Testing | Discovered new exit (range 24) 24476 | -2/Testing | First assault squad dispatched 24487 | -2/Testing | Entered Access 24487 | -1/Access | Evolved 2 slots: Weapon x2 24737 | -1/Access | First assault squad dispatched 24819 | -1/Access | Incoming assault squad redirected 25097 | -1/Access | Destroyed 9 combat bots 25158 | -1/Access | Found Gamma Bomb Array 25273 | -1/Access | Identified exit to Command 25348 | -1/Access | Energy Cycler disabled 25402 | -1/Access | Destroyed 8 combat bots 25441 | -1/Access | Spotted B-99 Colossus 25506 | -1/Access | Incoming assault squad redirected 25584 | -1/Access | Entered Command 25603 | -1/Command | Lost 6 parts (1n2u3w) 25760 | -1/Command | Used Integrity Redistributor, redistributed integrity from core (-288) 25836 | -1/Command | Failed to warp due to unstable space 25837 | -1/Command | Self-destructed Last Messages --------------- 25769_ Hvy. Machine Gun melted. 25769_ S-43 Plague destroyed. 25769_ Switching to secondary target: S-43 Plague. 25773_ Overheating: Energy bleed (-233). 25773_ Destroyed Lgt. Antimatter Reactor. 25779_ S-43 Plague destroyed. 25782_ Xenon Bombardment Thruster fried. 25782_ S-43 Plague destroyed. 25788_ Sneak attack on R-10 Processor. 25788_ R-10 Processor destroyed. 25790_ Ended siege mode. 25793_ Acquired Corrupted Hvy. Machine Gun. 25794_ Acquired 37 matter. 25794_ R-10 Processor collects Med. Storage Unit. 25797_ Acquired 38 matter. 25798_ Acquired 155 matter. 25818_ R-10 Processor collects Xenon Bombardment Thruster. 25829_ P-80 Master destroyed. 25832_ Acquired 66 matter. 25836_ Warp failed due to unstable space. Map ----- +----------------------------------------------------+ | ??????????????????????????????????????? ???? | | ???????????????????????????????????????? ????? | | ???????????????????????????????????????? ????? | | ????????????????????????????????????????? ?????? | | ????????????????????????????????????????? ?????? | | ????????????????????????????????????????##+####### | | ????????????????????????????????????????# | | ?????????????????????????? ????????????# | | ?????????????????????????? ????????????# ####### | | ?????????????????????????? ????????????# #?????? | | ?????????????????????????# # ??????????# #?????? | | ?????????????????????????# + ????????# #?????? | | ?????????????????????????# # ??????# #??#### | | ?????????????????????????# # ????# #?? | | ?????????????????????????# #? ??# #? | | ?????????????????????????# #? "" # #? | | ?????????????????????????# #????"""" + # | | ?????????????????????????# #????"""" # # | | ?????????????????????????# #???? "" ??# + | | ?????????????????????????# #???####????# ####### | | ?????????????????????????# ############# ##### | | ?????????????????????????#![ = | | ?????????????????????????#=[ * % | | ???????????????????????###+#############+####### | | ???????????????????????#=* ! ## == =% #?? | | ???????????????????????# @!= ##! = = #?? | | ???????????????????????# ## "#?? | | ???????????????????????# ## ""#?? | | ???????????????????????# ## """" ""#?? | | ???????????????????????# ## """" T#?? | | ???????????????????????# ## """" " #?? | | ???????????????????????# ## """" ""#?? | | ???????????????????????# ## ""#?? | | ???????????????????????# ## #?? | | ???????????????????????# ## #?? | | ???????????????????????# ## #?? | | ???????????????????????# ###############?? | | ???????????????????????# #???????????????? | | ???????????????????????# ????????????????? | | ???????????????????????? ???????????????????? | | ????????????????????????####?????????????????????? | | ?????????????????????????????????????????????????? | | ?????????????????????????????????????????????????? | | ?????????????????????????????????????????????????? | | ?????????????????????????????????????????????????? | | ?????????????????????????????????????????????????? | | | | | | | | | +----------------------------------------------------+ Best States ------------- Heat Dissipation 150 Energy Generation 79 Energy Capacity 1250 Matter Stores 791 Matter Capacity 1300 Sight Range 23 Terrain Scan Range 30 Terrain Scan Density 1010 Power Amplification 20 Additional Mass Support 12 Base Temperature (-) 200 Armor Coverage 1250 Resistance: KI 20 Resistance: TH 25 Resistance: EM 100 Propulsion Shielding 66 Weapon Shielding 66 Evasion (%) 55 Target Analysis 8 Core Analysis 15 Recoil Reduction 6 Energy Filtering 30 Particle Charging 15 Offensive Hacking 24 Defensive Hacking 26 Relay Coupler Types 30 Relay Coupler Value 1 Item Schematics ----------------- Coolant Injector | -7/Factory | Hacked Combat Drone Bay | -7/Data Miner | Free Lgt. Regenerative Plating | -7/Data Miner | Free Exp. Terrain Scanner | -7/Data Miner | Free Exp. Terrain Scan Processor | -7/Data Miner | Free Exp. ECM Suite | -7/Data Miner | Free Plasma Sword | -7/Data Miner | Free Robot Schematics ------------------ S-27 Virus | -7/Data Miner | Free G-50 Soldier | -7/Data Miner | Free H-66 Slayer | -7/Data Miner | Free I-36 Angel | -7/Data Miner | Free Fabricated ------------ Exp. Terrain Scanner | x1 | -4/Factory Alien Tech Used ----------------- Sigix Broadsword Subatomic Replicator Core Stripper Integrated Dissipator Matter Drive LRC Insulator Core Membrane Transdimensional Reconstructor Integrity Redistributor Achievements -------------- None Challenges ------------ None Game ------ Seed ImprovedBiometalRifle Manual? 0 Play Time 02:56:06 Cumulative 1931.6 hours Start 2021.06.13 @ 18:55:58 End 2021.06.13 @ 22:17:14 Sessions 1 Manual Loads 0 Difficulty Rogue Special Mode None Game No. 2568 Rogue 2560 Adventurer 0 Explorer 8 Win Type - Total 207 Types 42/28/83/3/3/5/40/2/1 Lore% 99 Gallery% 99 Achievement% 100 Wizard Run 0 Options --------- ASCII 0 Keyboard 1 Movement Vi Keybinds 1 Fullscreen 1 Font 18/SmallcapsGlow Map View 76x50 Tactical HUD 1 Map Filters NONE Filters NONE Steam 1 RUN: 5a735f2c-2ca6-4e0c-b654-15653648b9dd